[Event "Early-Titled-Tuesday-Blitz-February-06-2024"]
[Site "Chess.com"]
[Date "2024.02.06"]
[Round "4"]
[White "jacky72"]
[Black "chess123456s"]
[Result "1/2-1/2"]
[WhiteElo "2806"]
[BlackElo "2545"]
[TimeControl "180+1"]
[EndTime "8:39:41 PST"]
[Termination "Game drawn by agreement"]

1. Nh3 {[%clk 0:02:52.9]} 1... d5 {[%clk 0:02:59.5]} 2. Nf4 {[%clk 0:02:51.7]}
2... e5 {[%clk 0:02:59.5]} 3. Nd3 {[%clk 0:02:49.9]} 3... e4 {[%clk 0:02:59.4]}
4. Nf4 {[%clk 0:02:50.3]} 4... Nc6 {[%clk 0:02:56.3]} 5. d3 {[%clk 0:02:50]}
5... exd3 {[%clk 0:02:51.4]} 6. cxd3 {[%clk 0:02:43.3]} 6... Nf6 {[%clk
0:02:51.4]} 7. g3 {[%clk 0:02:41.4]} 7... Bd6 {[%clk 0:02:50]} 8. Bg2 {[%clk
0:02:40.6]} 8... O-O {[%clk 0:02:48.2]} 9. O-O {[%clk 0:02:38.6]} 9... Ne7
{[%clk 0:02:46.6]} 10. Nc3 {[%clk 0:02:35.8]} 10... c6 {[%clk 0:02:46.8]} 11. b3
{[%clk 0:02:36.1]} 11... Ng6 {[%clk 0:02:43.9]} 12. Nxg6 {[%clk 0:02:35.6]}
12... hxg6 {[%clk 0:02:44.8]} 13. Bb2 {[%clk 0:02:36]} 13... Re8 {[%clk
0:02:43]} 14. e4 {[%clk 0:02:36.5]} 14... dxe4 {[%clk 0:02:41.2]} 15. dxe4
{[%clk 0:02:35.7]} 15... Bg4 {[%clk 0:02:39.8]} 16. Qc2 {[%clk 0:02:31.7]} 16...
Qc8 {[%clk 0:02:36.5]} 17. Rfe1 {[%clk 0:02:27.5]} 17... Bh3 {[%clk 0:02:34.6]}
18. Bh1 {[%clk 0:02:26.4]} 18... Be5 {[%clk 0:02:31.2]} 19. Rad1 {[%clk
0:02:24]} 19... Qc7 {[%clk 0:02:26.5]} 20. f4 {[%clk 0:02:12.6]} 20... Qb6+
{[%clk 0:02:19.3]} 21. Qf2 {[%clk 0:02:10.5]} 21... Bc7 {[%clk 0:02:19.3]} 22.
Na4 {[%clk 0:01:58.3]} 22... Qa5 {[%clk 0:02:05.3]} 23. Qc5 {[%clk 0:01:49]}
23... b5 {[%clk 0:01:51.4]} 24. e5 {[%clk 0:01:24.4]} 24... bxa4 {[%clk
0:01:47.2]} 25. Qxa5 {[%clk 0:01:24.5]} 25... Bxa5 {[%clk 0:01:48.1]} 26. Bxc6
{[%clk 0:01:24.9]} 26... Bb6+ {[%clk 0:01:42.7]} 27. Bd4 {[%clk 0:01:22.9]}
27... Ng4 {[%clk 0:00:55.2]} 28. bxa4 {[%clk 0:01:09.6]} 28... Bxd4+ {[%clk
0:00:49]} 29. Rxd4 {[%clk 0:01:10.5]} 29... Red8 {[%clk 0:00:49.4]} 30. Rd6
{[%clk 0:01:04.9]} 30... Rac8 {[%clk 0:00:45.8]} 31. Bd7 {[%clk 0:00:57.6]}
31... Rc2 {[%clk 0:00:41.5]} 32. Bxg4 {[%clk 0:00:42.7]} 32... Rxd6 {[%clk
0:00:41.7]} 33. Bxh3 {[%clk 0:00:31]} 33... Rdd2 {[%clk 0:00:41.8]} 34. e6
{[%clk 0:00:31.6]} 34... fxe6 {[%clk 0:00:42.6]} 35. Bxe6+ {[%clk 0:00:29.5]}
35... Kh7 {[%clk 0:00:42]} 36. f5 {[%clk 0:00:26.5]} 36... Rg2+ {[%clk
0:00:39.6]} 37. Kh1 {[%clk 0:00:27.1]} 37... Rxh2+ {[%clk 0:00:39.3]} 38. Kg1
{[%clk 0:00:27.7]} 38... Rcg2+ {[%clk 0:00:37.2]} 39. Kf1 {[%clk 0:00:27.9]}
39... Rxa2 {[%clk 0:00:37.1]} 40. fxg6+ {[%clk 0:00:27.2]} 40... Kxg6 {[%clk
0:00:32.7]} 41. Bxa2 {[%clk 0:00:28.1]} 41... Rxa2 {[%clk 0:00:33]} 42. Re6+
{[%clk 0:00:29]} 42... Kf5 {[%clk 0:00:29.4]} 43. Ra6 {[%clk 0:00:29.9]} 43...
Kg4 {[%clk 0:00:27.5]} 44. Rg6+ {[%clk 0:00:17.4]} 44... Kf3 {[%clk 0:00:27.3]}
45. Ke1 {[%clk 0:00:18.1]} 45... Rxa4 {[%clk 0:00:24.8]} 46. Rxg7 {[%clk
0:00:18.2]} 46... a5 {[%clk 0:00:24.6]} 47. Kd2 {[%clk 0:00:18]} 47... Rg4
{[%clk 0:00:22.1]} 48. Ra7 {[%clk 0:00:17]} 48... Kxg3 {[%clk 0:00:21.7]} 49.
Rxa5 {[%clk 0:00:17.1]} 49... Rd4+ {[%clk 0:00:20.1]} 1/2-1/2

[Event "Early-Titled-Tuesday-Blitz-February-06-2024"]
[Site "Chess.com"]
[Date "2024.02.06"]
[Round "4"]
[White "campochess"]
[Black "Nechitaylo_Nikita"]
[Result "0-1"]
[WhiteElo "2076"]
[BlackElo "2301"]
[TimeControl "180+1"]
[EndTime "8:39:41 PST"]
[Termination "Nechitaylo_Nikita won by resignation"]

1. e4 {[%clk 0:02:58.8]} 1... c5 {[%clk 0:02:59.9]} 2. b4 {[%clk 0:02:57.2]}
2... cxb4 {[%clk 0:02:59.7]} 3. d4 {[%clk 0:02:57.2]} 3... d5 {[%clk 0:02:58.7]}
4. e5 {[%clk 0:02:57]} 4... Nc6 {[%clk 0:02:58.3]} 5. a3 {[%clk 0:02:52.8]} 5...
e6 {[%clk 0:02:53.2]} 6. axb4 {[%clk 0:02:51.7]} 6... Bxb4+ {[%clk 0:02:54]} 7.
c3 {[%clk 0:02:51.9]} 7... Be7 {[%clk 0:02:54.5]} 8. Bd3 {[%clk 0:02:51.2]} 8...
f6 {[%clk 0:02:54.6]} 9. Qh5+ {[%clk 0:02:50.1]} 9... Kf8 {[%clk 0:02:50.5]} 10.
f4 {[%clk 0:02:46.2]} 10... Bd7 {[%clk 0:02:47.2]} 11. Nf3 {[%clk 0:02:40.1]}
11... Be8 {[%clk 0:02:47.1]} 12. Qh3 {[%clk 0:02:38.6]} 12... f5 {[%clk
0:02:40.6]} 13. g4 {[%clk 0:02:31.6]} 13... fxg4 {[%clk 0:02:35.6]} 14. Qxg4
{[%clk 0:02:30.8]} 14... Bf7 {[%clk 0:02:34.4]} 15. f5 {[%clk 0:02:28.4]} 15...
exf5 {[%clk 0:02:29]} 16. Bxf5 {[%clk 0:02:27.2]} 16... h5 {[%clk 0:02:19.2]}
17. Qg2 {[%clk 0:02:23]} 17... Nh6 {[%clk 0:02:10.4]} 18. Bh3 {[%clk 0:02:11.2]}
18... Ng4 {[%clk 0:01:34.4]} 19. O-O {[%clk 0:02:04]} 19... Kg8 {[%clk
0:01:27.2]} 20. Na3 {[%clk 0:01:56.5]} 20... Be6 {[%clk 0:01:25.4]} 21. Nc2
{[%clk 0:01:39.7]} 21... Kh7 {[%clk 0:00:58.4]} 22. Ne3 {[%clk 0:01:37.7]} 22...
Qd7 {[%clk 0:00:43.1]} 23. Bxg4 {[%clk 0:01:02]} 23... hxg4 {[%clk 0:00:44]} 24.
Ne1 {[%clk 0:00:57.3]} 24... Rhf8 {[%clk 0:00:42.2]} 25. Nd3 {[%clk 0:00:50.2]}
25... Rxf1+ {[%clk 0:00:41]} 26. Kxf1 {[%clk 0:00:49.5]} 26... Bh4 {[%clk
0:00:26.4]} 27. Kg1 {[%clk 0:00:43.5]} 27... Qf7 {[%clk 0:00:09.4]} 28. Bd2
{[%clk 0:00:38.5]} 28... Rf8 {[%clk 0:00:08.1]} 29. Rf1 {[%clk 0:00:38]} 29...
Qe8 {[%clk 0:00:04.3]} 30. Rxf8 {[%clk 0:00:37.6]} 30... Qxf8 {[%clk 0:00:05.2]}
31. Nxg4 {[%clk 0:00:35.3]} 31... Qf5 {[%clk 0:00:02.6]} 32. Ngf2 {[%clk
0:00:33.5]} 32... Bxf2+ {[%clk 0:00:03.1]} 33. Nxf2 {[%clk 0:00:30.6]} 33... a5
{[%clk 0:00:02.2]} 34. h3 {[%clk 0:00:25.9]} 34... a4 {[%clk 0:00:02.5]} 35. Ng4
{[%clk 0:00:24.8]} 35... a3 {[%clk 0:00:02.3]} 36. Qg3 {[%clk 0:00:20.5]} 36...
Qb1+ {[%clk 0:00:01.9]} 37. Kf2 {[%clk 0:00:19.8]} 37... a2 {[%clk 0:00:02.2]}
38. Qh4+ {[%clk 0:00:20]} 38... Kg8 {[%clk 0:00:02.9]} 39. Nf6+ {[%clk
0:00:16.4]} 39... gxf6 {[%clk 0:00:02.9]} 40. Qxf6 {[%clk 0:00:12.8]} 40... Qf5+
{[%clk 0:00:02.6]} 41. Qxf5 {[%clk 0:00:11.9]} 41... Bxf5 {[%clk 0:00:03.5]} 0-1

[Event "Early-Titled-Tuesday-Blitz-February-06-2024"]
[Site "Chess.com"]
[Date "2024.02.06"]
[Round "4"]
[White "wyharga"]
[Black "Mikhail_Golubev"]
[Result "1-0"]
[WhiteElo "2552"]
[BlackElo "2643"]
[TimeControl "180+1"]
[EndTime "8:39:42 PST"]
[Termination "wyharga won by resignation"]

1. e4 {[%clk 0:03:00.9]} 1... c5 {[%clk 0:02:59]} 2. Nf3 {[%clk 0:03:00.7]} 2...
d6 {[%clk 0:02:59.1]} 3. Bb5+ {[%clk 0:03:00.6]} 3... Bd7 {[%clk 0:02:58.5]} 4.
Bxd7+ {[%clk 0:03:00.5]} 4... Nxd7 {[%clk 0:02:59.4]} 5. O-O {[%clk 0:02:59.5]}
5... Ngf6 {[%clk 0:02:59.3]} 6. Qe2 {[%clk 0:02:59.9]} 6... e6 {[%clk
0:02:59.4]} 7. c3 {[%clk 0:03:00.1]} 7... Be7 {[%clk 0:02:58.5]} 8. d4 {[%clk
0:03:00.3]} 8... O-O {[%clk 0:02:58.5]} 9. e5 {[%clk 0:02:57.7]} 9... Ne8 {[%clk
0:02:58.1]} 10. Bf4 {[%clk 0:02:49.8]} 10... Rc8 {[%clk 0:02:47.8]} 11. exd6
{[%clk 0:02:26.7]} 11... Nxd6 {[%clk 0:02:35.5]} 12. dxc5 {[%clk 0:02:23.6]}
12... Nxc5 {[%clk 0:02:34.1]} 13. Rd1 {[%clk 0:02:22.1]} 13... Qb6 {[%clk
0:02:30.5]} 14. Na3 {[%clk 0:02:05.6]} 14... Nf5 {[%clk 0:02:23.5]} 15. Nc4
{[%clk 0:01:40.4]} 15... Qa6 {[%clk 0:02:20]} 16. b3 {[%clk 0:01:40.3]} 16...
Rfd8 {[%clk 0:02:02.7]} 17. g3 {[%clk 0:01:30.8]} 17... b5 {[%clk 0:01:36.6]}
18. Nce5 {[%clk 0:01:15.1]} 18... Qb7 {[%clk 0:01:36.3]} 19. Rxd8+ {[%clk
0:00:52.8]} 19... Rxd8 {[%clk 0:01:35.9]} 20. Rd1 {[%clk 0:00:52.9]} 20... Rxd1+
{[%clk 0:01:31.1]} 21. Qxd1 {[%clk 0:00:53]} 21... f6 {[%clk 0:01:30.3]} 22. Ng4
{[%clk 0:00:43.4]} 22... e5 {[%clk 0:01:12.5]} 23. Bc1 {[%clk 0:00:43.2]} 23...
e4 {[%clk 0:01:03.7]} 24. Nd4 {[%clk 0:00:42.9]} 24... Nxd4 {[%clk 0:01:03.8]}
25. Qxd4 {[%clk 0:00:38.1]} 25... Nd3 {[%clk 0:01:03.9]} 26. Bd2 {[%clk
0:00:27.2]} 26... h5 {[%clk 0:00:43.7]} 27. Ne3 {[%clk 0:00:26.7]} 27... Bc5
{[%clk 0:00:31.9]} 28. Qd8+ {[%clk 0:00:25.2]} 28... Kh7 {[%clk 0:00:31.7]} 29.
Qe8 {[%clk 0:00:23.4]} 29... g6 {[%clk 0:00:30.8]} 30. Kf1 {[%clk 0:00:20.3]}
30... f5 {[%clk 0:00:29.5]} 31. h4 {[%clk 0:00:17.5]} 31... a6 {[%clk
0:00:29.1]} 32. Ke2 {[%clk 0:00:17.4]} 32... a5 {[%clk 0:00:26.1]} 33. Qe6
{[%clk 0:00:17.5]} 33... a4 {[%clk 0:00:23.5]} 34. f3 {[%clk 0:00:17.7]} 34...
axb3 {[%clk 0:00:20.7]} 35. axb3 {[%clk 0:00:17.1]} 35... Bb6 {[%clk 0:00:17.6]}
36. fxe4 {[%clk 0:00:17.3]} 36... fxe4 {[%clk 0:00:17.4]} 37. Nd5 {[%clk
0:00:17.6]} 37... Bg1 {[%clk 0:00:13.3]} 38. Nf6+ {[%clk 0:00:17]} 38... Kg7
{[%clk 0:00:13.2]} 39. Nxe4 {[%clk 0:00:16.2]} 39... Nc5 {[%clk 0:00:11.3]} 40.
Qe5+ {[%clk 0:00:16.4]} 40... Kh7 {[%clk 0:00:09.8]} 41. Nxc5 {[%clk 0:00:15.5]}
41... Qg2+ {[%clk 0:00:09.6]} 42. Kd3 {[%clk 0:00:15.9]} 42... Qf3+ {[%clk
0:00:09.3]} 43. Kc2 {[%clk 0:00:15.4]} 43... Bxc5 {[%clk 0:00:08.6]} 44. Qxc5
{[%clk 0:00:15.5]} 44... Qe4+ {[%clk 0:00:08.6]} 45. Kc1 {[%clk 0:00:15.8]}
45... Qh1+ {[%clk 0:00:08.2]} 46. Kb2 {[%clk 0:00:16.1]} 46... Qg2 {[%clk
0:00:08.1]} 47. Qd6 {[%clk 0:00:16.2]} 1-0

[Event "Early-Titled-Tuesday-Blitz-February-06-2024"]
[Site "Chess.com"]
[Date "2024.02.06"]
[Round "4"]
[White "Mistango"]
[Black "IngOscarArdila"]
[Result "1-0"]
[WhiteElo "2458"]
[BlackElo "2202"]
[TimeControl "180+1"]
[EndTime "8:39:44 PST"]
[Termination "Mistango won by resignation"]

1. e4 {[%clk 0:02:55]} 1... e5 {[%clk 0:02:59.9]} 2. d4 {[%clk 0:02:53.8]} 2...
d6 {[%clk 0:02:57.1]} 3. dxe5 {[%clk 0:02:50.7]} 3... dxe5 {[%clk 0:02:57.2]} 4.
Qxd8+ {[%clk 0:02:51.4]} 4... Kxd8 {[%clk 0:02:58.1]} 5. Bc4 {[%clk 0:02:49]}
5... f6 {[%clk 0:02:57.9]} 6. Nc3 {[%clk 0:02:46.3]} 6... c6 {[%clk 0:02:58]} 7.
f4 {[%clk 0:02:44.9]} 7... Nd7 {[%clk 0:02:54.1]} 8. Nf3 {[%clk 0:02:43.9]} 8...
exf4 {[%clk 0:02:54.6]} 9. Bxf4 {[%clk 0:02:43]} 9... Bb4 {[%clk 0:02:54.8]} 10.
O-O-O {[%clk 0:02:41.8]} 10... Bxc3 {[%clk 0:02:53.6]} 11. bxc3 {[%clk
0:02:42.7]} 11... Ne7 {[%clk 0:02:49.8]} 12. Rhe1 {[%clk 0:02:18.4]} 12... Ng6
{[%clk 0:02:49.9]} 13. Bd6 {[%clk 0:02:18]} 13... b5 {[%clk 0:02:39.1]} 14. Be6
{[%clk 0:02:08.8]} 14... Ke8 {[%clk 0:02:26.9]} 15. Bxd7+ {[%clk 0:02:00.3]}
15... Bxd7 {[%clk 0:02:25.8]} 16. e5 {[%clk 0:02:01.2]} 16... Kf7 {[%clk
0:02:08.9]} 17. Bc5 {[%clk 0:01:55.8]} 17... Be6 {[%clk 0:02:07.3]} 18. Rd6
{[%clk 0:01:49.4]} 18... Bd5 {[%clk 0:01:55.1]} 19. e6+ {[%clk 0:01:48.5]} 19...
Ke8 {[%clk 0:01:51.5]} 20. Nd4 {[%clk 0:01:30.6]} 20... Rd8 {[%clk 0:01:45.6]}
21. Nf5 {[%clk 0:01:16.6]} 21... Rg8 {[%clk 0:01:29.2]} 22. Rxd8+ {[%clk
0:01:01.5]} 22... Kxd8 {[%clk 0:01:29.2]} 23. e7+ {[%clk 0:01:01.6]} 23... Kd7
{[%clk 0:01:23.8]} 24. Nxg7 {[%clk 0:01:01.4]} 24... Bf7 {[%clk 0:00:48.2]} 25.
Nh5 {[%clk 0:01:00.9]} 25... Re8 {[%clk 0:00:15]} 26. Nxf6+ {[%clk 0:01:00.3]}
26... Kc7 {[%clk 0:00:15.8]} 27. g3 {[%clk 0:00:45.8]} 27... h5 {[%clk
0:00:14.7]} 28. h4 {[%clk 0:00:44.8]} 28... a5 {[%clk 0:00:12.1]} 29. a3 {[%clk
0:00:44.1]} 29... a4 {[%clk 0:00:11]} 30. Kd2 {[%clk 0:00:42.2]} 30... Nh8
{[%clk 0:00:08.5]} 31. Nxe8+ {[%clk 0:00:41.3]} 31... Bxe8 {[%clk 0:00:08.9]}
32. Rf1 {[%clk 0:00:41]} 32... Nf7 {[%clk 0:00:07.9]} 33. Rf5 {[%clk 0:00:36]}
33... Kd7 {[%clk 0:00:07.1]} 34. Rxh5 {[%clk 0:00:34.7]} 34... Ke6 {[%clk
0:00:07.6]} 35. Ke3 {[%clk 0:00:31]} 35... Ne5 {[%clk 0:00:06.3]} 36. Rh8 {[%clk
0:00:29.4]} 36... Kf7 {[%clk 0:00:05.2]} 37. Ke4 {[%clk 0:00:27.7]} 37... Ng6
{[%clk 0:00:04.9]} 38. Rh5 {[%clk 0:00:25.4]} 38... Ke6 {[%clk 0:00:04.1]} 39.
g4 {[%clk 0:00:23.7]} 39... Bf7 {[%clk 0:00:03.4]} 40. Rh6 {[%clk 0:00:21.8]}
40... Kd7 {[%clk 0:00:01.9]} 41. h5 {[%clk 0:00:20.9]} 41... Nh4 {[%clk
0:00:01.3]} 42. g5 {[%clk 0:00:18.6]} 42... Be8 {[%clk 0:00:01.7]} 43. g6 {[%clk
0:00:17.8]} 43... Ng2 {[%clk 0:00:02]} 44. Rh8 {[%clk 0:00:17.2]} 44... Bf7
{[%clk 0:00:02.8]} 45. gxf7 {[%clk 0:00:16.7]} 1-0

[Event "Early-Titled-Tuesday-Blitz-February-06-2024"]
[Site "Chess.com"]
[Date "2024.02.06"]
[Round "4"]
[White "SoyuzTM4"]
[Black "falzehope0"]
[Result "1-0"]
[WhiteElo "2205"]
[BlackElo "2357"]
[TimeControl "180+1"]
[EndTime "8:39:45 PST"]
[Termination "SoyuzTM4 won by checkmate"]

1. e4 {[%clk 0:03:00.9]} 1... d5 {[%clk 0:02:35.5]} 2. exd5 {[%clk 0:03:00]}
2... Nf6 {[%clk 0:02:33.2]} 3. Nc3 {[%clk 0:02:56.9]} 3... g6 {[%clk 0:02:28]}
4. Bc4 {[%clk 0:02:53.9]} 4... Bg7 {[%clk 0:02:27]} 5. Nge2 {[%clk 0:02:50.4]}
5... O-O {[%clk 0:02:26.7]} 6. O-O {[%clk 0:02:49.3]} 6... Nbd7 {[%clk
0:02:26.6]} 7. Nf4 {[%clk 0:02:35.3]} 7... a6 {[%clk 0:02:16.6]} 8. a4 {[%clk
0:02:34.5]} 8... b6 {[%clk 0:02:05.4]} 9. Re1 {[%clk 0:02:31.5]} 9... Bb7 {[%clk
0:02:05.2]} 10. Qe2 {[%clk 0:02:29.2]} 10... Re8 {[%clk 0:02:03]} 11. d4 {[%clk
0:02:17.6]} 11... Nf8 {[%clk 0:01:38.4]} 12. h4 {[%clk 0:02:12.7]} 12... Qd7
{[%clk 0:01:36.4]} 13. h5 {[%clk 0:02:07.9]} 13... Qf5 {[%clk 0:01:33.4]} 14.
hxg6 {[%clk 0:01:41.5]} 14... hxg6 {[%clk 0:01:30.5]} 15. Qe5 {[%clk 0:01:23.6]}
15... Qd7 {[%clk 0:01:23.8]} 16. Qg5 {[%clk 0:01:15.5]} 16... N8h7 {[%clk
0:01:21.2]} 17. Qg3 {[%clk 0:01:11.9]} 17... g5 {[%clk 0:01:07.1]} 18. Nd3
{[%clk 0:01:07.5]} 18... Nxd5 {[%clk 0:01:05.6]} 19. Bxg5 {[%clk 0:00:48.6]}
19... Nxg5 {[%clk 0:01:00.9]} 20. Qxg5 {[%clk 0:00:48]} 20... Nxc3 {[%clk
0:00:58.1]} 21. bxc3 {[%clk 0:00:47.3]} 21... e6 {[%clk 0:00:53]} 22. Re3 {[%clk
0:00:41.8]} 22... Qe7 {[%clk 0:00:50.8]} 23. Qg4 {[%clk 0:00:39.4]} 23... Qf6
{[%clk 0:00:46.1]} 24. Ne5 {[%clk 0:00:37.1]} 24... c5 {[%clk 0:00:39.8]} 25.
Rg3 {[%clk 0:00:34.2]} 25... Re7 {[%clk 0:00:33.2]} 26. Re1 {[%clk 0:00:31.8]}
26... Kf8 {[%clk 0:00:32.6]} 27. Qh5 {[%clk 0:00:30]} 27... Qh6 {[%clk
0:00:31.1]} 28. Qe2 {[%clk 0:00:28.7]} 28... Bxe5 {[%clk 0:00:28.9]} 29. Qxe5
{[%clk 0:00:27.5]} 29... Rd8 {[%clk 0:00:27.6]} 30. Rh3 {[%clk 0:00:26.2]} 30...
f6 {[%clk 0:00:23.3]} 31. Rxh6 {[%clk 0:00:19.8]} 31... fxe5 {[%clk 0:00:23.4]}
32. Rh8+ {[%clk 0:00:18.8]} 32... Kg7 {[%clk 0:00:23.8]} 33. Rxd8 {[%clk
0:00:18.7]} 33... exd4 {[%clk 0:00:22.9]} 34. cxd4 {[%clk 0:00:18.7]} 34... b5
{[%clk 0:00:20.9]} 35. axb5 {[%clk 0:00:18]} 35... axb5 {[%clk 0:00:21.8]} 36.
Bxb5 {[%clk 0:00:18.5]} 36... cxd4 {[%clk 0:00:22]} 37. Rxd4 {[%clk 0:00:18]}
37... Kf6 {[%clk 0:00:22.3]} 38. Rd7 {[%clk 0:00:17.9]} 38... Bd5 {[%clk
0:00:19.6]} 39. Rxe7 {[%clk 0:00:17.6]} 39... Kxe7 {[%clk 0:00:19.9]} 40. c4
{[%clk 0:00:18.2]} 40... Bb7 {[%clk 0:00:19.6]} 41. f4 {[%clk 0:00:18.5]} 41...
Kd6 {[%clk 0:00:19.6]} 42. Kf2 {[%clk 0:00:19]} 42... Ba8 {[%clk 0:00:18.1]} 43.
g4 {[%clk 0:00:19.6]} 43... Bb7 {[%clk 0:00:18.6]} 44. g5 {[%clk 0:00:19.9]}
44... Bc8 {[%clk 0:00:18.8]} 45. g6 {[%clk 0:00:20.2]} 45... Ke7 {[%clk
0:00:19.2]} 46. Rg1 {[%clk 0:00:19.6]} 46... Kf6 {[%clk 0:00:19.3]} 47. g7
{[%clk 0:00:19.7]} 47... Bb7 {[%clk 0:00:18.6]} 48. g8=Q {[%clk 0:00:19.7]}
48... Be4 {[%clk 0:00:18]} 49. Qf8# {[%clk 0:00:19.6]} 1-0

[Event "Early-Titled-Tuesday-Blitz-February-06-2024"]
[Site "Chess.com"]
[Date "2024.02.06"]
[Round "4"]
[White "Eagle_2019"]
[Black "NikoTheodorou"]
[Result "1-0"]
[WhiteElo "2869"]
[BlackElo "3058"]
[TimeControl "180+1"]
[EndTime "8:39:46 PST"]
[Termination "Eagle_2019 won by resignation"]

1. c4 {[%clk 0:03:00.9]} 1... b6 {[%clk 0:03:00.9]} 2. Nc3 {[%clk 0:02:59.6]}
2... Bb7 {[%clk 0:03:01.8]} 3. d4 {[%clk 0:02:58]} 3... g6 {[%clk 0:03:02.2]} 4.
Nf3 {[%clk 0:02:53.1]} 4... Bg7 {[%clk 0:03:02.6]} 5. Bf4 {[%clk 0:02:52]} 5...
d6 {[%clk 0:03:02]} 6. e3 {[%clk 0:02:52.1]} 6... Nd7 {[%clk 0:03:02.1]} 7. h3
{[%clk 0:02:51.7]} 7... e5 {[%clk 0:02:59.4]} 8. Bh2 {[%clk 0:02:51.5]} 8... Ne7
{[%clk 0:02:59.2]} 9. Be2 {[%clk 0:02:51.4]} 9... exd4 {[%clk 0:02:57.7]} 10.
exd4 {[%clk 0:02:50.3]} 10... O-O {[%clk 0:02:57.8]} 11. O-O {[%clk 0:02:48.2]}
11... Nf5 {[%clk 0:02:58.5]} 12. Re1 {[%clk 0:02:38.5]} 12... Re8 {[%clk
0:02:56.7]} 13. d5 {[%clk 0:02:14.5]} 13... Nc5 {[%clk 0:02:56.9]} 14. Qd2
{[%clk 0:02:05.5]} 14... a5 {[%clk 0:02:38.7]} 15. Bf1 {[%clk 0:02:05.1]} 15...
Qd7 {[%clk 0:02:32.3]} 16. Rad1 {[%clk 0:01:41.3]} 16... h5 {[%clk 0:02:27.3]}
17. Nb5 {[%clk 0:01:37.1]} 17... Rxe1 {[%clk 0:02:11.8]} 18. Rxe1 {[%clk
0:01:35]} 18... c6 {[%clk 0:02:12.4]} 19. Nc3 {[%clk 0:01:26.1]} 19... Re8
{[%clk 0:02:01.9]} 20. Rxe8+ {[%clk 0:01:14.3]} 20... Qxe8 {[%clk 0:02:02.8]}
21. dxc6 {[%clk 0:01:14.6]} 21... Bxc6 {[%clk 0:02:00.5]} 22. Nd5 {[%clk
0:01:14.5]} 22... Ne4 {[%clk 0:01:53]} 23. Qe2 {[%clk 0:01:05]} 23... Bxd5
{[%clk 0:00:41.6]} 24. cxd5 {[%clk 0:01:05.9]} 24... Kf8 {[%clk 0:00:42.3]} 25.
b3 {[%clk 0:00:44.7]} 25... Nc3 {[%clk 0:00:33.6]} 26. Qc4 {[%clk 0:00:43.9]}
26... Ne4 {[%clk 0:00:22.3]} 27. Qc6 {[%clk 0:00:40.8]} 27... Qd8 {[%clk
0:00:19.3]} 28. Bd3 {[%clk 0:00:35.6]} 28... Ng5 {[%clk 0:00:10.3]} 29. Nxg5
{[%clk 0:00:33.3]} 29... Qxg5 {[%clk 0:00:11.2]} 30. Qc8+ {[%clk 0:00:32.8]}
30... Ke7 {[%clk 0:00:11]} 31. Qc7+ {[%clk 0:00:26.9]} 31... Kf8 {[%clk
0:00:11.4]} 32. Bxf5 {[%clk 0:00:26.4]} 32... gxf5 {[%clk 0:00:09.8]} 33. Qb8+
{[%clk 0:00:26.1]} 33... Ke7 {[%clk 0:00:08.4]} 34. Bxd6+ {[%clk 0:00:22.9]}
34... Kf6 {[%clk 0:00:08.5]} 35. Qd8+ {[%clk 0:00:20.5]} 35... Kg6 {[%clk
0:00:09.1]} 36. Qxg5+ {[%clk 0:00:20.4]} 36... Kxg5 {[%clk 0:00:10]} 37. Be7+
{[%clk 0:00:20.7]} 37... Bf6 {[%clk 0:00:06.8]} 38. d6 {[%clk 0:00:20.7]} 38...
Kg6 {[%clk 0:00:07.3]} 39. Kf1 {[%clk 0:00:20.7]} 39... f4 {[%clk 0:00:03.4]}
40. Ke2 {[%clk 0:00:20.1]} 40... Kf5 {[%clk 0:00:02.3]} 41. Bxf6 {[%clk
0:00:18.2]} 41... Kxf6 {[%clk 0:00:03.2]} 42. Kf3 {[%clk 0:00:18.6]} 42... Ke6
{[%clk 0:00:02.8]} 43. Kxf4 {[%clk 0:00:19]} 43... Kxd6 {[%clk 0:00:03]} 44. Kg5
{[%clk 0:00:18.2]} 44... Kc5 {[%clk 0:00:03.9]} 45. Kxh5 {[%clk 0:00:18.6]}
45... Kb4 {[%clk 0:00:04.8]} 46. Kg5 {[%clk 0:00:18.9]} 46... Ka3 {[%clk
0:00:05.7]} 47. h4 {[%clk 0:00:19.4]} 47... Kxa2 {[%clk 0:00:06.6]} 48. h5
{[%clk 0:00:19.9]} 48... a4 {[%clk 0:00:06.7]} 49. bxa4 {[%clk 0:00:19.8]} 1-0